Workbook

Sheet Summary(Help)
G27: GE

Sheet Apple Inc.
J2: Todays Index Report | M2: Yesterdays Index Report
I3: Open: | J3: =VALUE(B18) -> 626.13 | L3: Open: | M3: =VALUE(B19) -> 626.98
I4: High: | J4: =VALUE(C18) -> 639.84 | L4: High: | M4: =VALUE(C19) -> 634.66
I5: Low: | J5: =VALUE(D18) -> 625.3 | L5: Low: | M5: =VALUE(D19) -> 623.4
I6: Close: | J6: =VALUE(E18) -> 636.23 | L6: Close: | M6: =VALUE(E19) -> 633.68
G7: Change | I7: Volume: | J7: =VALUE(F18) -> 21267873 | L7: Volume: | M7: =VALUE(F19) -> 22902694
G8: =$J$6-$M$6 -> 2.55
A17: Date | B17: Open | C17: High | D17: Low | E17: Close | F17: Volume
A18: 2012-04-09 | B18: 626.13 | C18: 639.84 | D18: 625.3 | E18: 636.23 | F18: 21267873
A19: 2012-04-05 | B19: 626.98 | C19: 634.66 | D19: 623.4 | E19: 633.68 | F19: 22902694
A20: 2012-04-04 | B20: 624.35 | C20: 625.86 | D20: 617 | E20: 624.31 | F20: 20463585
A21: 2012-04-03 | B21: 627.3 | C21: 632.21 | D21: 622.51 | E21: 629.32 | F21: 29714508
A22: 2012-04-02 | B22: 601.83 | C22: 618.77 | D22: 600.38 | E22: 618.63 | F22: 21369494
A23: 2012-03-30 | B23: 608.77 | C23: 610.56 | D23: 597.94 | E23: 599.55 | F23: 26108485
A24: 2012-03-29 | B24: 612.78 | C24: 616.56 | D24: 607.23 | E24: 609.86 | F24: 21722776
A25: 2012-03-28 | B25: 618.38 | C25: 621.45 | D25: 610.31 | E25: 617.62 | F25: 23409267
A26: 2012-03-27 | B26: 606.18 | C26: 616.28 | D26: 606.06 | E26: 614.48 | F26: 21683163
A27: 2012-03-26 | B27: 599.79 | C27: 607.15 | D27: 595.26 | E27: 606.98 | F27: 21276317
A28: 2012-03-23 | B28: 600.49 | C28: 601.8 | D28: 594.4 | E28: 596.05 | F28: 15374545
A29: 2012-03-22 | B29: 597.78 | C29: 604.5 | D29: 595.53 | E29: 599.34 | F29: 22290414
A30: 2012-03-21 | B30: 602.74 | C30: 609.65 | D30: 601.41 | E30: 602.5 | F30: 23001482
A31: 2012-03-20 | B31: 599.51 | C31: 606.9 | D31: 582 | E31: 605.96 | F31: 29166719
A32: 2012-03-19 | B32: 598.37 | C32: 601.77 | D32: 589.05 | E32: 601.1 | F32: 32186970
A33: 2012-03-16 | B33: 584.72 | C33: 589.2 | D33: 578 | E33: 585.57 | F33: 29481697
A34: 2012-03-15 | B34: 599.61 | C34: 600.01 | D34: 578.55 | E34: 585.56 | F34: 41416824
A35: 2012-03-14 | B35: 578.05 | C35: 594.72 | D35: 575.4 | E35: 589.58 | F35: 50672821
A36: 2012-03-13 | B36: 557.54 | C36: 568.18 | D36: 555.75 | E36: 568.1 | F36: 24673237
A37: 2012-03-12 | B37: 548.98 | C37: 552 | D37: 547 | E37: 552 | F37: 14545717
A38: 2012-03-09 | B38: 544.21 | C38: 547.74 | D38: 543.11 | E38: 545.17 | F38: 14960676
A39: 2012-03-08 | B39: 534.69 | C39: 542.99 | D39: 532.12 | E39: 541.99 | F39: 18444389
A40: 2012-03-07 | B40: 536.8 | C40: 537.78 | D40: 523.3 | E40: 530.69 | F40: 28518507
A41: 2012-03-06 | B41: 523.66 | C41: 533.69 | D41: 516.22 | E41: 530.26 | F41: 28937093
A42: 2012-03-05 | B42: 545.42 | C42: 547.48 | D42: 526 | E42: 533.16 | F42: 28897169
A43: 2012-03-02 | B43: 544.24 | C43: 546.8 | D43: 542.52 | E43: 545.18 | F43: 15418227
A44: 2012-03-01 | B44: 548.17 | C44: 548.21 | D44: 538.77 | E44: 544.47 | F44: 24401884
A45: 2012-02-29 | B45: 541.56 | C45: 547.61 | D45: 535.7 | E45: 542.44 | F45: 34000054
A46: 2012-02-28 | B46: 527.96 | C46: 535.41 | D46: 525.85 | E46: 535.41 | F46: 21442354
A47: 2012-02-27 | B47: 521.31 | C47: 528.5 | D47: 516.28 | E47: 525.76 | F47: 19556472
CV100: 1

Sheet Skullcandy
J3: Todays Index Report | M3: Yesterdays Index Report
I4: Open: | J4: =VALUE(B17) -> 16.73 | L4: Open: | M4: =$B$18 -> 16.52
I5: High: | J5: =VALUE(C17) -> 17.2 | L5: High: | M5: =VALUE(C18) -> 17.48
I6: Low: | J6: =VALUE(D17) -> 16.15 | L6: Low: | M6: =VALUE(D18) -> 16.5
G7: Change | I7: Close: | J7: =VALUE(E17) -> 16.6 | L7: Close: | M7: =VALUE(E18) -> 17.06
G8: =$J$7-$M$7 -> -0.46 | I8: Volume: | J8: =VALUE(F17) -> 443796 | L8: Volume: | M8: =VALUE(F18) -> 732171
G11: =J7-M7 -> -0.46
G12: =G11/M7 -> -0.02696365768
A16: Date | B16: Open | C16: High | D16: Low | E16: Close | F16: Volume
A17: 2012-04-09 | B17: 16.73 | C17: 17.2 | D17: 16.15 | E17: 16.6 | F17: 443796
A18: 2012-04-05 | B18: 16.52 | C18: 17.48 | D18: 16.5 | E18: 17.06 | F18: 732171
A19: 2012-04-04 | B19: 16.3 | C19: 16.74 | D19: 16 | E19: 16.51 | F19: 448908
A20: 2012-04-03 | B20: 16.2 | C20: 16.5 | D20: 16.04 | E20: 16.38 | F20: 486360
A21: 2012-04-02 | B21: 15.75 | C21: 16.43 | D21: 15.75 | E21: 16.08 | F21: 862774
A22: 2012-03-30 | B22: 16 | C22: 16 | D22: 15.72 | E22: 15.83 | F22: 424271
A23: 2012-03-29 | B23: 15.99 | C23: 15.99 | D23: 15.67 | E23: 15.85 | F23: 169109
A24: 2012-03-28 | B24: 15.99 | C24: 15.99 | D24: 15.55 | E24: 15.91 | F24: 412661
A25: 2012-03-27 | B25: 15.78 | C25: 16.22 | D25: 15.6 | E25: 15.88 | F25: 662716
A26: 2012-03-26 | B26: 15.67 | C26: 15.85 | D26: 15.53 | E26: 15.74 | F26: 339738
A27: 2012-03-23 | B27: 15.22 | C27: 15.63 | D27: 15.19 | E27: 15.56 | F27: 314221
A28: 2012-03-22 | B28: 14.98 | C28: 15.44 | D28: 14.8 | E28: 15.07 | F28: 362828
A29: 2012-03-21 | B29: 14.75 | C29: 15.14 | D29: 14.68 | E29: 15.06 | F29: 177169
A30: 2012-03-20 | B30: 14.95 | C30: 15.08 | D30: 14.57 | E30: 14.65 | F30: 213149
A31: 2012-03-19 | B31: 14.91 | C31: 15.2 | D31: 14.91 | E31: 15.03 | F31: 208062
A32: 2012-03-16 | B32: 15.01 | C32: 15.17 | D32: 14.93 | E32: 15 | F32: 121504
A33: 2012-03-15 | B33: 15.31 | C33: 15.4 | D33: 14.9 | E33: 15.05 | F33: 205237
A34: 2012-03-14 | B34: 14.97 | C34: 15.2 | D34: 14.91 | E34: 15.17 | F34: 332558
A35: 2012-03-13 | B35: 15.15 | C35: 15.23 | D35: 14.87 | E35: 15 | F35: 624500
A36: 2012-03-12 | B36: 14.84 | C36: 15.19 | D36: 14.64 | E36: 14.91 | F36: 696295
A37: 2012-03-09 | B37: 14.28 | C37: 14.59 | D37: 14.28 | E37: 14.43 | F37: 542063
A38: 2012-03-08 | B38: 14.2 | C38: 14.49 | D38: 14 | E38: 14.32 | F38: 1034971
A39: 2012-03-07 | B39: 13.75 | C39: 14.12 | D39: 13.61 | E39: 14.12 | F39: 862715
A40: 2012-03-06 | B40: 13.5 | C40: 13.95 | D40: 13.25 | E40: 13.6 | F40: 2206909
A41: 2012-03-05 | B41: 14.81 | C41: 14.98 | D41: 14.56 | E41: 14.83 | F41: 388150
A42: 2012-03-02 | B42: 14.46 | C42: 14.98 | D42: 14.33 | E42: 14.89 | F42: 470545
A43: 2012-03-01 | B43: 14.14 | C43: 14.61 | D43: 14.07 | E43: 14.52 | F43: 436238
A44: 2012-02-29 | B44: 14.3 | C44: 14.46 | D44: 14.01 | E44: 14.12 | F44: 623177
A45: 2012-02-28 | B45: 14.55 | C45: 14.73 | D45: 14.12 | E45: 14.22 | F45: 312182
A46: 2012-02-27 | B46: 14.9 | C46: 14.93 | D46: 13.93 | E46: 14.42 | F46: 1008691
CV100: 0

Sheet Exxonmobil
J5: Todays Index Report | M5: Yesterdays Index Report
I6: Open: | J6: =VALUE(B17) -> 83.98 | L6: Open: | M6: =$B$18 -> 84.56
G7: Change | I7: Open: | J7: =VALUE(C17) -> 84.36 | L7: High: | M7: =VALUE(C18) -> 85.38
G8: =$J$9-$M$9 -> -0.94 | I8: Open: | J8: =VALUE(D17) -> 83.68 | L8: Low: | M8: =VALUE(D18) -> 84.35
I9: Open: | J9: =VALUE(E17) -> 83.88 | L9: Close: | M9: =VALUE(E18) -> 84.82
I10: Open: | J10: =VALUE(F17) -> 11011439 | L10: Volume: | M10: =VALUE(F18) -> 11957908
A16: Date | B16: Open | C16: High | D16: Low | E16: Close | F16: Volume
A17: 2012-04-09 | B17: 83.98 | C17: 84.36 | D17: 83.68 | E17: 83.88 | F17: 11011439
A18: 2012-04-05 | B18: 84.56 | C18: 85.38 | D18: 84.35 | E18: 84.82 | F18: 11957908
A19: 2012-04-04 | B19: 85.3 | C19: 85.36 | D19: 84.49 | E19: 84.98 | F19: 17114877
A20: 2012-04-03 | B20: 86.75 | C20: 86.78 | D20: 85 | E20: 85.83 | F20: 17711796
A21: 2012-04-02 | B21: 86.6 | C21: 87.67 | D21: 86.31 | E21: 87.07 | F21: 13856287
A22: 2012-03-30 | B22: 86.48 | C22: 86.76 | D22: 86.09 | E22: 86.73 | F22: 12970772
A23: 2012-03-29 | B23: 85.32 | C23: 86.13 | D23: 84.91 | E23: 86.08 | F23: 13200437
A24: 2012-03-28 | B24: 86.36 | C24: 86.48 | D24: 85.14 | E24: 85.86 | F24: 16156696
A25: 2012-03-27 | B25: 87.14 | C25: 87.25 | D25: 86.54 | E25: 86.62 | F25: 12509149
A26: 2012-03-26 | B26: 86.18 | C26: 87.25 | D26: 86.07 | E26: 87.03 | F26: 17337747
A27: 2012-03-23 | B27: 85.36 | C27: 85.98 | D27: 85.02 | E27: 85.55 | F27: 12558190
A28: 2012-03-22 | B28: 85.48 | C28: 85.94 | D28: 85.1 | E28: 85.33 | F28: 13884723
A29: 2012-03-21 | B29: 86.59 | C29: 86.59 | D29: 85.77 | E29: 86.01 | F29: 14212631
A30: 2012-03-20 | B30: 86.46 | C30: 87.1 | D30: 86.32 | E30: 86.6 | F30: 13618226
A31: 2012-03-19 | B31: 86.08 | C31: 87.18 | D31: 86.03 | E31: 86.99 | F31: 10770576
A32: 2012-03-16 | B32: 86.2 | C32: 86.89 | D32: 85.92 | E32: 86.44 | F32: 30992609
A33: 2012-03-15 | B33: 85.89 | C33: 86.2 | D33: 85.25 | E33: 86.09 | F33: 14524541
A34: 2012-03-14 | B34: 86.59 | C34: 86.83 | D34: 85.74 | E34: 86.02 | F34: 16187878
A35: 2012-03-13 | B35: 85.89 | C35: 86.93 | D35: 85.61 | E35: 86.86 | F35: 16845481
A36: 2012-03-12 | B36: 84.5 | C36: 85.75 | D36: 84.13 | E36: 85.55 | F36: 19019201
A37: 2012-03-09 | B37: 85.06 | C37: 85.13 | D37: 84.05 | E37: 84.3 | F37: 17042412
A38: 2012-03-08 | B38: 85 | C38: 85.47 | D38: 84.63 | E38: 84.83 | F38: 19033213
A39: 2012-03-07 | B39: 86.01 | C39: 86.12 | D39: 85.19 | E39: 85.83 | F39: 14768279
A40: 2012-03-06 | B40: 86.24 | C40: 86.48 | D40: 85.42 | E40: 85.86 | F40: 16508531
A41: 2012-03-05 | B41: 86.17 | C41: 87.09 | D41: 85.91 | E41: 87.01 | F41: 12806179
A42: 2012-03-02 | B42: 86.66 | C42: 86.75 | D42: 85.85 | E42: 86.33 | F42: 11346860
A43: 2012-03-01 | B43: 86.47 | C43: 87.18 | D43: 86.41 | E43: 86.83 | F43: 12640606
A44: 2012-02-29 | B44: 87.45 | C44: 87.49 | D44: 86.21 | E44: 86.5 | F44: 18295783
A45: 2012-02-28 | B45: 87.23 | C45: 87.44 | D45: 86.55 | E45: 87.14 | F45: 14322136
A46: 2012-02-27 | B46: 87.15 | C46: 87.83 | D46: 86.78 | E46: 87.23 | F46: 13332177
CV100: 0

Sheet Toyota
J5: Todays Index Report | M5: Yesterdays Index Report
I6: Open: | J6: =VALUE(B17) -> 81.61 | L6: Open: | M6: =$B$18 -> 83.3
G7: Change | I7: High: | J7: =VALUE(C17) -> 82.03 | L7: High: | M7: =VALUE(C18) -> 83.93
G8: =$J$9-$M$9 -> -2.16 | I8: Low: | J8: =VALUE(D17) -> 81.4 | L8: Low: | M8: =VALUE(D18) -> 83.22
I9: Close: | J9: =VALUE(E17) -> 81.7 | L9: Close: | M9: =VALUE(E18) -> 83.86
I10: Volume: | J10: =VALUE(F17) -> 440170 | L10: Volume: | M10: =VALUE(F18) -> 329781
A16: Date | B16: Open | C16: High | D16: Low | E16: Close | F16: Volume
A17: 2012-04-09 | B17: 81.61 | C17: 82.03 | D17: 81.4 | E17: 81.7 | F17: 440170
A18: 2012-04-05 | B18: 83.3 | C18: 83.93 | D18: 83.22 | E18: 83.86 | F18: 329781
A19: 2012-04-04 | B19: 83.77 | C19: 83.85 | D19: 82.97 | E19: 83.6 | F19: 626915
A20: 2012-04-03 | B20: 86.66 | C20: 86.77 | D20: 85.74 | E20: 86.22 | F20: 437244
A21: 2012-04-02 | B21: 85.66 | C21: 86.98 | D21: 85.63 | E21: 86.69 | F21: 554776
A22: 2012-03-30 | B22: 87.12 | C22: 87.15 | D22: 86.54 | E22: 86.82 | F22: 270355
A23: 2012-03-29 | B23: 85.8 | C23: 86.17 | D23: 85.44 | E23: 86.06 | F23: 375940
A24: 2012-03-28 | B24: 87.1 | C24: 87.14 | D24: 86.21 | E24: 86.7 | F24: 731436
A25: 2012-03-27 | B25: 85.86 | C25: 86 | D25: 85.4 | E25: 85.64 | F25: 487523
A26: 2012-03-26 | B26: 84.19 | C26: 84.59 | D26: 83.8 | E26: 84.35 | F26: 559696
A27: 2012-03-23 | B27: 83.36 | C27: 83.76 | D27: 82.97 | E27: 83.76 | F27: 437466
A28: 2012-03-22 | B28: 83.97 | C28: 84.72 | D28: 83.96 | E28: 84.43 | F28: 516879
A29: 2012-03-21 | B29: 84.07 | C29: 84.23 | D29: 83.79 | E29: 83.96 | F29: 283480
A30: 2012-03-20 | B30: 84.43 | C30: 84.86 | D30: 84.1 | E30: 84.66 | F30: 303727
A31: 2012-03-19 | B31: 85.2 | C31: 85.28 | D31: 84.79 | E31: 85.24 | F31: 316026
A32: 2012-03-16 | B32: 85.77 | C32: 85.85 | D32: 85.34 | E32: 85.4 | F32: 368183
A33: 2012-03-15 | B33: 85.1 | C33: 85.43 | D33: 84.79 | E33: 85.34 | F33: 591235
A34: 2012-03-14 | B34: 84.06 | C34: 84.2 | D34: 83.31 | E34: 83.54 | F34: 344688
A35: 2012-03-13 | B35: 83.1 | C35: 83.99 | D35: 83.09 | E35: 83.97 | F35: 307973
A36: 2012-03-12 | B36: 83.18 | C36: 83.18 | D36: 82.61 | E36: 82.78 | F36: 271336
A37: 2012-03-09 | B37: 83.45 | C37: 83.94 | D37: 83.34 | E37: 83.81 | F37: 502974
A38: 2012-03-08 | B38: 82.18 | C38: 82.55 | D38: 82.06 | E38: 82.52 | F38: 454329
A39: 2012-03-07 | B39: 80.43 | C39: 80.81 | D39: 80.27 | E39: 80.72 | F39: 341447
A40: 2012-03-06 | B40: 80.31 | C40: 80.32 | D40: 79.7 | E40: 80.15 | F40: 611637
A41: 2012-03-05 | B41: 81.38 | C41: 81.45 | D41: 80.89 | E41: 81.24 | F41: 524267
A42: 2012-03-02 | B42: 81.41 | C42: 81.59 | D42: 80.83 | E42: 81.57 | F42: 836525
A43: 2012-03-01 | B43: 82.57 | C43: 83.38 | D43: 82.51 | E43: 83.07 | F43: 547179
A44: 2012-02-29 | B44: 83.63 | C44: 83.93 | D44: 82.68 | E44: 82.71 | F44: 505350
A45: 2012-02-28 | B45: 84.24 | C45: 84.81 | D45: 84.1 | E45: 84.65 | F45: 370294
A46: 2012-02-27 | B46: 82.99 | C46: 83.85 | D46: 82.77 | E46: 83.6 | F46: 387760
CV100: 0

Sheet Tetra Tech
J6: Todays Index Report | M6: Yesterdays Index Report
G7: Change | I7: Open: | J7: =VALUE(B17) -> 25.3 | L7: Open: | M7: =$B$18 -> 25.97
G8: =$J$10-$M$10 -> -0.18 | I8: High: | J8: =VALUE(C17) -> 25.94 | L8: High: | M8: =VALUE(C18) -> 26.14
I9: Low: | J9: =VALUE(D17) -> 25.3 | L9: Low: | M9: =VALUE(D18) -> 25.86
I10: Close: | J10: =VALUE(E17) -> 25.77 | L10: Close: | M10: =VALUE(E18) -> 25.95
I11: Volume: | J11: =VALUE(F17) -> 293781 | L11: Volume: | M11: =VALUE(F18) -> 294667
A16: Date | B16: Open | C16: High | D16: Low | E16: Close | F16: Volume
A17: 2012-04-09 | B17: 25.3 | C17: 25.94 | D17: 25.3 | E17: 25.77 | F17: 293781
A18: 2012-04-05 | B18: 25.97 | C18: 26.14 | D18: 25.86 | E18: 25.95 | F18: 294667
A19: 2012-04-04 | B19: 26.13 | C19: 26.29 | D19: 25.87 | E19: 26.14 | F19: 381307
A20: 2012-04-03 | B20: 26.73 | C20: 26.87 | D20: 26.36 | E20: 26.49 | F20: 459625
A21: 2012-04-02 | B21: 26.22 | C21: 26.9 | D21: 26.22 | E21: 26.88 | F21: 500802
A22: 2012-03-30 | B22: 26.43 | C22: 26.49 | D22: 26.16 | E22: 26.36 | F22: 371589
A23: 2012-03-29 | B23: 25.96 | C23: 26.35 | D23: 25.89 | E23: 26.24 | F23: 469643
A24: 2012-03-28 | B24: 26.07 | C24: 26.17 | D24: 25.8 | E24: 26.15 | F24: 309218
A25: 2012-03-27 | B25: 26 | C25: 26.17 | D25: 25.85 | E25: 26.12 | F25: 406306
A26: 2012-03-26 | B26: 25.43 | C26: 25.99 | D26: 25.27 | E26: 25.96 | F26: 603075
A27: 2012-03-23 | B27: 24.78 | C27: 25.36 | D27: 24.73 | E27: 25.24 | F27: 513612
A28: 2012-03-22 | B28: 24.47 | C28: 24.9 | D28: 24.47 | E28: 24.87 | F28: 443700
A29: 2012-03-21 | B29: 24.57 | C29: 24.88 | D29: 24.5 | E29: 24.81 | F29: 424360
A30: 2012-03-20 | B30: 24.61 | C30: 24.73 | D30: 24.5 | E30: 24.56 | F30: 370579
A31: 2012-03-19 | B31: 24.08 | C31: 25 | D31: 24.02 | E31: 24.76 | F31: 482359
A32: 2012-03-16 | B32: 24 | C32: 24.17 | D32: 23.83 | E32: 24 | F32: 543737
A33: 2012-03-15 | B33: 23.91 | C33: 24.2 | D33: 23.8 | E33: 24.13 | F33: 160159
A34: 2012-03-14 | B34: 24.23 | C34: 24.29 | D34: 23.82 | E34: 23.92 | F34: 305829
A35: 2012-03-13 | B35: 24.12 | C35: 24.3 | D35: 23.7 | E35: 24.29 | F35: 525641
A36: 2012-03-12 | B36: 24.39 | C36: 24.62 | D36: 23.94 | E36: 24.1 | F36: 243085
A37: 2012-03-09 | B37: 24.13 | C37: 24.65 | D37: 24.04 | E37: 24.4 | F37: 265869
A38: 2012-03-08 | B38: 23.9 | C38: 24.3 | D38: 23.65 | E38: 24.21 | F38: 320169
A39: 2012-03-07 | B39: 23.52 | C39: 23.8 | D39: 23.45 | E39: 23.77 | F39: 266389
A40: 2012-03-06 | B40: 23.78 | C40: 23.95 | D40: 23.41 | E40: 23.45 | F40: 288832
A41: 2012-03-05 | B41: 23.56 | C41: 24.02 | D41: 23.52 | E41: 24.02 | F41: 258236
A42: 2012-03-02 | B42: 24.27 | C42: 24.47 | D42: 23.55 | E42: 23.68 | F42: 436531
A43: 2012-03-01 | B43: 24.61 | C43: 24.87 | D43: 24.35 | E43: 24.35 | F43: 414236
A44: 2012-02-29 | B44: 25.41 | C44: 25.5 | D44: 24.18 | E44: 24.56 | F44: 1960874
A45: 2012-02-28 | B45: 25.5 | C45: 26.07 | D45: 25.07 | E45: 25.27 | F45: 620914
A46: 2012-02-27 | B46: 24.63 | C46: 25.35 | D46: 24.26 | E46: 25.13 | F46: 382309
CV100: 0

Sheet Qantas
J4: Todays Index Report | M4: Yesterdays Index Report
I5: Open: | J5: =$B$17 -> 1.7 | L5: Open: | M5: =$B$18 -> 1.71
I6: High: | J6: =$C$17 -> 1.7 | L6: High: | M6: =$C$18 -> 1.72
G7: Change | I7: Low: | J7: =$D$17 -> 1.67 | L7: Low: | M7: =$D$18 -> 1.68
G8: =$J$8-$M$8 -> -0.04 | I8: Close: | J8: =$E$17 -> 1.67 | L8: Close: | M8: =$E$18 -> 1.71
I9: Volume: | J9: =$F$17 -> 7186271 | L9: Volume: | M9: =$F$17 -> 7186271
A16: Date | B16: Open | C16: High | D16: Low | E16: Close | F16: Volume
A17: 2012-04-05 | B17: 1.7 | C17: 1.7 | D17: 1.67 | E17: 1.67 | F17: 7186271
A18: 2012-04-04 | B18: 1.71 | C18: 1.72 | D18: 1.68 | E18: 1.71 | F18: 11264238
A19: 2012-04-03 | B19: 1.74 | C19: 1.74 | D19: 1.71 | E19: 1.72 | F19: 7913252
A20: 2012-04-02 | B20: 1.78 | C20: 1.78 | D20: 1.71 | E20: 1.72 | F20: 13967140
A21: 2012-03-30 | B21: 1.8 | C21: 1.82 | D21: 1.78 | E21: 1.78 | F21: 13147811
A22: 2012-03-29 | B22: 1.8 | C22: 1.82 | D22: 1.78 | E22: 1.82 | F22: 6339096
A23: 2012-03-28 | B23: 1.76 | C23: 1.8 | D23: 1.76 | E23: 1.8 | F23: 9413466
A24: 2012-03-27 | B24: 1.78 | C24: 1.78 | D24: 1.76 | E24: 1.78 | F24: 3291831
A25: 2012-03-26 | B25: 1.77 | C25: 1.8 | D25: 1.76 | E25: 1.76 | F25: 7670927
A26: 2012-03-23 | B26: 1.74 | C26: 1.75 | D26: 1.72 | E26: 1.73 | F26: 8956165
A27: 2012-03-22 | B27: 1.76 | C27: 1.8 | D27: 1.75 | E27: 1.76 | F27: 10397226
A28: 2012-03-21 | B28: 1.76 | C28: 1.79 | D28: 1.74 | E28: 1.78 | F28: 9280676
A29: 2012-03-20 | B29: 1.78 | C29: 1.78 | D29: 1.76 | E29: 1.76 | F29: 6771613
A30: 2012-03-19 | B30: 1.77 | C30: 1.78 | D30: 1.76 | E30: 1.78 | F30: 10958522
A31: 2012-03-16 | B31: 1.76 | C31: 1.78 | D31: 1.75 | E31: 1.76 | F31: 7004251
A32: 2012-03-15 | B32: 1.76 | C32: 1.78 | D32: 1.75 | E32: 1.76 | F32: 8953325
A33: 2012-03-14 | B33: 1.75 | C33: 1.78 | D33: 1.74 | E33: 1.74 | F33: 11969848
A34: 2012-03-13 | B34: 1.68 | C34: 1.74 | D34: 1.68 | E34: 1.73 | F34: 10716428
A35: 2012-03-12 | B35: 1.68 | C35: 1.7 | D35: 1.65 | E35: 1.66 | F35: 12037394
A36: 2012-03-09 | B36: 1.72 | C36: 1.74 | D36: 1.65 | E36: 1.68 | F36: 19405168
A37: 2012-03-08 | B37: 1.73 | C37: 1.74 | D37: 1.72 | E37: 1.72 | F37: 5337911
A38: 2012-03-07 | B38: 1.75 | C38: 1.75 | D38: 1.72 | E38: 1.72 | F38: 11205320
A39: 2012-03-06 | B39: 1.74 | C39: 1.78 | D39: 1.74 | E39: 1.76 | F39: 19266668
A40: 2012-03-05 | B40: 1.74 | C40: 1.76 | D40: 1.74 | E40: 1.74 | F40: 6827874
A41: 2012-03-02 | B41: 1.73 | C41: 1.76 | D41: 1.72 | E41: 1.74 | F41: 6182015
A42: 2012-03-01 | B42: 1.72 | C42: 1.75 | D42: 1.69 | E42: 1.72 | F42: 8446637
A43: 2012-02-29 | B43: 1.72 | C43: 1.76 | D43: 1.72 | E43: 1.73 | F43: 11020255
A44: 2012-02-28 | B44: 1.69 | C44: 1.75 | D44: 1.69 | E44: 1.72 | F44: 10760124
A45: 2012-02-27 | B45: 1.69 | C45: 1.7 | D45: 1.67 | E45: 1.68 | F45: 4755442
A46: 2012-02-24 | B46: 1.66 | C46: 1.71 | D46: 1.66 | E46: 1.68 | F46: 10122518
CV100: 0

Sheet Nike
K2: Todays Index Report | N2: Yesterdays Index Report
J3: Open: | K3: =$B$15 -> 108.89 | M3: Open: | N3: =B$16 -> 109.03
J4: High: | K4: =$C$15 -> 111 | M4: High: | N4: =$C$16 -> 110.53
J5: Low: | K5: =$D$15 -> 108.51 | M5: Low: | N5: =$D$16 -> 109
J6: Close: | K6: =$E$15 -> 110.69 | M6: Close: | N6: =$E$16 -> 110.39
G7: Change | J7: Volume: | K7: =$F$15 -> 2809265 | M7: Volume: | N7: =$F$16 -> 2196874
G8: =$K$6-$N$6 -> 0.3
A14: Date | B14: Open | C14: High | D14: Low | E14: Close | F14: Volume
A15: 2012-04-09 | B15: 108.89 | C15: 111 | D15: 108.51 | E15: 110.69 | F15: 2809265
A16: 2012-04-05 | B16: 109.03 | C16: 110.53 | D16: 109 | E16: 110.39 | F16: 2196874
A17: 2012-04-04 | B17: 109.15 | C17: 109.89 | D17: 108.68 | E17: 109.49 | F17: 2216657
A18: 2012-04-03 | B18: 108.81 | C18: 109.89 | D18: 108.3 | E18: 109.87 | F18: 2188703
A19: 2012-04-02 | B19: 108.42 | C19: 109.83 | D19: 107.99 | E19: 109.02 | F19: 2447038
A20: 2012-03-30 | B20: 108.38 | C20: 109.18 | D20: 107.85 | E20: 108.44 | F20: 2318743
A21: 2012-03-29 | B21: 106.3 | C21: 107.99 | D21: 106.3 | E21: 107.85 | F21: 1973351
A22: 2012-03-28 | B22: 107.61 | C22: 107.93 | D22: 106.28 | E22: 107.23 | F22: 2309866
A23: 2012-03-27 | B23: 108.71 | C23: 109.17 | D23: 107.72 | E23: 107.88 | F23: 2532767
A24: 2012-03-26 | B24: 107.88 | C24: 108.8 | D24: 107.72 | E24: 108.55 | F24: 3128222
A25: 2012-03-23 | B25: 111.21 | C25: 111.5 | D25: 106.07 | E25: 107.42 | F25: 6627376
A26: 2012-03-22 | B26: 110.11 | C26: 111.63 | D26: 109.08 | E26: 110.99 | F26: 5113430
A27: 2012-03-21 | B27: 112.07 | C27: 112.7 | D27: 110.38 | E27: 110.44 | F27: 3777463
A28: 2012-03-20 | B28: 111.73 | C28: 112.97 | D28: 111.73 | E28: 111.74 | F28: 2670398
A29: 2012-03-19 | B29: 111.9 | C29: 112.52 | D29: 110.96 | E29: 112.13 | F29: 2599965
A30: 2012-03-16 | B30: 110.74 | C30: 111.78 | D30: 110.56 | E30: 111.22 | F30: 3612426
A31: 2012-03-15 | B31: 110.83 | C31: 111.07 | D31: 110.31 | E31: 110.73 | F31: 1824342
A32: 2012-03-14 | B32: 110.9 | C32: 111.23 | D32: 110.16 | E32: 110.3 | F32: 1863119
A33: 2012-03-13 | B33: 110 | C33: 110.84 | D33: 109.54 | E33: 110.76 | F33: 2382882
A34: 2012-03-12 | B34: 108.8 | C34: 109.92 | D34: 108.6 | E34: 109.45 | F34: 2302038
A35: 2012-03-09 | B35: 108.64 | C35: 110.15 | D35: 108.2 | E35: 109.98 | F35: 2453450
A36: 2012-03-08 | B36: 108.13 | C36: 108.5 | D36: 107.66 | E36: 107.9 | F36: 1141246
A37: 2012-03-07 | B37: 107.46 | C37: 108.15 | D37: 107.3 | E37: 107.58 | F37: 1794492
A38: 2012-03-06 | B38: 108.56 | C38: 109.22 | D38: 106.98 | E38: 107.34 | F38: 1971883
A39: 2012-03-05 | B39: 108.7 | C39: 109.67 | D39: 108.3 | E39: 109.24 | F39: 1793360
A40: 2012-03-02 | B40: 108.67 | C40: 109.06 | D40: 107.95 | E40: 108.74 | F40: 1752880
A41: 2012-03-01 | B41: 108.89 | C41: 108.98 | D41: 108.02 | E41: 108.54 | F41: 1767621
A42: 2012-02-29 | B42: 107.51 | C42: 108.28 | D42: 106.93 | E42: 107.92 | F42: 1772196
A43: 2012-02-28 | B43: 107.41 | C43: 107.63 | D43: 106.52 | E43: 107.43 | F43: 1261903
A44: 2012-02-27 | B44: 105.88 | C44: 107.7 | D44: 105.54 | E44: 107.17 | F44: 1519334
CV100: 1

Sheet AT&T
K2: Todays Index Report | N2: Yesterdays Index Report
J3: Open: | K3: =$B$14 -> 30.67 | M3: Open: | N3: =$B$15 -> 31.09
J4: High: | K4: =$C$14 -> 30.84 | M4: High: | N4: =$C$15 -> 31.16
J5: Low: | K5: =$D$14 -> 30.55 | M5: Low: | N5: =$D$15 -> 30.75
J6: Close: | K6: =$E$14 -> 30.64 | M6: Close: | N6: =$E$15 -> 30.94
G7: Change | J7: Volume: | K7: =$F$14 -> 19170288 | M7: Volume: | N7: =$F$15 -> 21473770
G8: =$K$6-$N$6 -> -0.3
A13: Date | B13: Open | C13: High | D13: Low | E13: Close | F13: Volume
A14: 2012-04-09 | B14: 30.67 | C14: 30.84 | D14: 30.55 | E14: 30.64 | F14: 19170288
A15: 2012-04-05 | B15: 31.09 | C15: 31.16 | D15: 30.75 | E15: 30.94 | F15: 21473770
A16: 2012-04-04 | B16: 31.38 | C16: 31.66 | D16: 31.38 | E16: 31.57 | F16: 26608426
A17: 2012-04-03 | B17: 31.43 | C17: 31.6 | D17: 31.33 | E17: 31.43 | F17: 21987666
A18: 2012-04-02 | B18: 31.28 | C18: 31.59 | D18: 31.27 | E18: 31.45 | F18: 21698981
A19: 2012-03-30 | B19: 31.32 | C19: 31.38 | D19: 31.16 | E19: 31.23 | F19: 21748065
A20: 2012-03-29 | B20: 31.05 | C20: 31.21 | D20: 30.77 | E20: 31.21 | F20: 28715568
A21: 2012-03-28 | B21: 31.53 | C21: 31.57 | D21: 31.2 | E21: 31.36 | F21: 31389577
A22: 2012-03-27 | B22: 31.79 | C22: 31.95 | D22: 31.6 | E22: 31.64 | F22: 27905643
A23: 2012-03-26 | B23: 31.61 | C23: 31.83 | D23: 31.59 | E23: 31.79 | F23: 75572224
A24: 2012-03-23 | B24: 31.66 | C24: 31.72 | D24: 31.38 | E24: 31.52 | F24: 77770324
A25: 2012-03-22 | B25: 31.8 | C25: 31.86 | D25: 31.56 | E25: 31.71 | F25: 80257498
A26: 2012-03-21 | B26: 31.85 | C26: 31.97 | D26: 31.83 | E26: 31.84 | F26: 21086952
A27: 2012-03-20 | B27: 31.6 | C27: 31.83 | D27: 31.51 | E27: 31.79 | F27: 18135819
A28: 2012-03-19 | B28: 31.46 | C28: 31.74 | D28: 31.35 | E28: 31.65 | F28: 19747361
A29: 2012-03-16 | B29: 31.7 | C29: 31.71 | D29: 31.51 | E29: 31.59 | F29: 28667216
A30: 2012-03-15 | B30: 31.41 | C30: 31.65 | D30: 31.35 | E30: 31.64 | F30: 20007924
A31: 2012-03-14 | B31: 31.6 | C31: 31.8 | D31: 31.42 | E31: 31.45 | F31: 24506274
A32: 2012-03-13 | B32: 31.52 | C32: 31.64 | D32: 31.44 | E32: 31.63 | F32: 23754610
A33: 2012-03-12 | B33: 31.2 | C33: 31.52 | D33: 31.18 | E33: 31.44 | F33: 20572633
A34: 2012-03-09 | B34: 31 | C34: 31.18 | D34: 31 | E34: 31.18 | F34: 19202138
A35: 2012-03-08 | B35: 31.07 | C35: 31.15 | D35: 30.88 | E35: 31 | F35: 18745925
A36: 2012-03-07 | B36: 30.69 | C36: 30.97 | D36: 30.69 | E36: 30.88 | F36: 16543949
A37: 2012-03-06 | B37: 30.8 | C37: 30.97 | D37: 30.66 | E37: 30.72 | F37: 25450819
A38: 2012-03-05 | B38: 30.85 | C38: 31.12 | D38: 30.75 | E38: 30.99 | F38: 39273111
A39: 2012-03-02 | B39: 30.67 | C39: 31 | D39: 30.6 | E39: 30.87 | F39: 23542566
A40: 2012-03-01 | B40: 30.54 | C40: 30.66 | D40: 30.15 | E40: 30.63 | F40: 21582227
A41: 2012-02-29 | B41: 30.49 | C41: 30.64 | D41: 30.47 | E41: 30.59 | F41: 26530833
A42: 2012-02-28 | B42: 30.41 | C42: 30.58 | D42: 30.36 | E42: 30.53 | F42: 20298037
A43: 2012-02-27 | B43: 30.31 | C43: 30.43 | D43: 30.29 | E43: 30.36 | F43: 30633545
CV100: 0

Sheet JP Morgan
K2: Todays Index Report | N2: Yesterdays Index Report
J3: Open: | K3: =$B$15 -> 43.19 | M3: Open: | N3: =$B$16 -> 44.13
J4: High: | K4: =$C$15 -> 44.28 | M4: High: | N4: =$C$16 -> 44.73
J5: Low: | K5: =$D$15 -> 43.07 | M5: Low: | N5: =$D$16 -> 43.81
J6: Close: | K6: =$E$15 -> 43.89 | M6: Close: | N6: =$E$16 -> 44.34
G7: Change | J7: Volume: | K7: =$F$15 -> 29309671 | M7: Volume: | N7: =$F$16 -> 28834531
G8: =$K$6-$N$6 -> -0.45
A14: Date | B14: Open | C14: High | D14: Low | E14: Close | F14: Volume
A15: 2012-04-09 | B15: 43.19 | C15: 44.28 | D15: 43.07 | E15: 43.89 | F15: 29309671
A16: 2012-04-05 | B16: 44.13 | C16: 44.73 | D16: 43.81 | E16: 44.34 | F16: 28834531
A17: 2012-04-04 | B17: 44.68 | C17: 44.86 | D17: 43.96 | E17: 44.41 | F17: 41347710
A18: 2012-04-03 | B18: 45.74 | C18: 45.98 | D18: 44.97 | E18: 45.42 | F18: 30938661
A19: 2012-04-02 | B19: 45.75 | C19: 46.35 | D19: 45.46 | E19: 46.13 | F19: 27675928
A20: 2012-03-30 | B20: 46.08 | C20: 46.13 | D20: 45.5 | E20: 45.98 | F20: 25945990
A21: 2012-03-29 | B21: 45.92 | C21: 46.02 | D21: 42.63 | E21: 45.67 | F21: 32268866
A22: 2012-03-28 | B22: 45.76 | C22: 46.31 | D22: 45.36 | E22: 46.27 | F22: 29763066
A23: 2012-03-27 | B23: 45.92 | C23: 46.49 | D23: 45.83 | E23: 45.89 | F23: 33035556
A24: 2012-03-26 | B24: 45.48 | C24: 46.17 | D24: 45.4 | E24: 46.17 | F24: 33530630
A25: 2012-03-23 | B25: 44.45 | C25: 45.25 | D25: 44.44 | E25: 45.16 | F25: 30643963
A26: 2012-03-22 | B26: 44.72 | C26: 45.1 | D26: 44.41 | E26: 44.65 | F26: 27461074
A27: 2012-03-21 | B27: 45.53 | C27: 45.67 | D27: 44.86 | E27: 45.12 | F27: 27273648
A28: 2012-03-20 | B28: 44.53 | C28: 45.6 | D28: 44.37 | E28: 45.38 | F28: 34798090
A29: 2012-03-19 | B29: 44.44 | C29: 45.35 | D29: 44.21 | E29: 45 | F29: 41515244
A30: 2012-03-16 | B30: 44.87 | C30: 44.92 | D30: 44.22 | E30: 44.57 | F30: 48844406
A31: 2012-03-15 | B31: 43.64 | C31: 44.92 | D31: 42.93 | E31: 44.7 | F31: 57124817
A32: 2012-03-14 | B32: 43.62 | C32: 44 | D32: 43.07 | E32: 43.58 | F32: 68028623
A33: 2012-03-13 | B33: 41.02 | C33: 43.73 | D33: 40.82 | E33: 43.39 | F33: 77277594
A34: 2012-03-12 | B34: 40.86 | C34: 40.98 | D34: 40.2 | E34: 40.54 | F34: 30763746
A35: 2012-03-09 | B35: 40.75 | C35: 41.44 | D35: 40.5 | E35: 41.03 | F35: 33499779
A36: 2012-03-08 | B36: 40.47 | C36: 40.75 | D36: 40.22 | E36: 40.44 | F36: 22060726
A37: 2012-03-07 | B37: 39.46 | C37: 40.06 | D37: 39.38 | E37: 39.95 | F37: 22880868
A38: 2012-03-06 | B38: 39.45 | C38: 39.87 | D38: 39.12 | E38: 39.32 | F38: 33930434
A39: 2012-03-05 | B39: 40.7 | C39: 40.71 | D39: 40 | E39: 40.4 | F39: 30806826
A40: 2012-03-02 | B40: 40.43 | C40: 40.88 | D40: 40.23 | E40: 40.63 | F40: 34897825
A41: 2012-03-01 | B41: 39.51 | C41: 40.45 | D41: 39.47 | E41: 40.37 | F41: 44384544
A42: 2012-02-29 | B42: 39.33 | C42: 39.94 | D42: 39.02 | E42: 39.24 | F42: 41187933
A43: 2012-02-28 | B43: 39.13 | C43: 39.55 | D43: 38.85 | E43: 39.21 | F43: 37905499
A44: 2012-02-27 | B44: 38.07 | C44: 39.23 | D44: 37.79 | E44: 39.06 | F44: 34036867
CV100: 0

Sheet UPS
K2: Todays Index Report | N2: Yesterdays Index Report
J3: Open: | K3: =$B$15 -> 79.35 | M3: Open: | N3: =$B$16 -> 79.5
J4: High: | K4: =$C$15 -> 79.57 | M4: High: | N4: =$C$16 -> 80.25
J5: Low: | K5: =$D$15 -> 78.95 | M5: Low: | N5: =$D$16 -> 79.32
J6: Close: | K6: =$E$15 -> 79.19 | M6: Close: | N6: =$E$16 -> 80.18
G7: Change | J7: Volume: | K7: =$F$15 -> 2375567 | M7: Volume: | N7: =$F$16 -> 2389180
G8: =$K$6-$N$6 -> -0.99
A14: Date | B14: Open | C14: High | D14: Low | E14: Close | F14: Volume
A15: 2012-04-09 | B15: 79.35 | C15: 79.57 | D15: 78.95 | E15: 79.19 | F15: 2375567
A16: 2012-04-05 | B16: 79.5 | C16: 80.25 | D16: 79.32 | E16: 80.18 | F16: 2389180
A17: 2012-04-04 | B17: 80.19 | C17: 80.37 | D17: 79.63 | E17: 79.86 | F17: 2629748
A18: 2012-04-03 | B18: 80.79 | C18: 80.79 | D18: 79.94 | E18: 80.52 | F18: 2947061
A19: 2012-04-02 | B19: 80.31 | C19: 80.97 | D19: 80.12 | E19: 80.67 | F19: 2979212
A20: 2012-03-30 | B20: 80.23 | C20: 80.8 | D20: 80.01 | E20: 80.72 | F20: 3470046
A21: 2012-03-29 | B21: 79.74 | C21: 80.04 | D21: 78.85 | E21: 79.85 | F21: 3231468
A22: 2012-03-28 | B22: 80.21 | C22: 80.42 | D22: 79.45 | E22: 80.04 | F22: 3656579
A23: 2012-03-27 | B23: 80.94 | C23: 81 | D23: 80.34 | E23: 80.39 | F23: 3059327
A24: 2012-03-26 | B24: 80.26 | C24: 80.84 | D24: 80.26 | E24: 80.57 | F24: 3218526
A25: 2012-03-23 | B25: 80.19 | C25: 80.25 | D25: 79.3 | E25: 79.71 | F25: 4198301
A26: 2012-03-22 | B26: 79.72 | C26: 80.44 | D26: 79.48 | E26: 80.28 | F26: 3711794
A27: 2012-03-21 | B27: 80.4 | C27: 80.74 | D27: 79.96 | E27: 80.51 | F27: 3846989
A28: 2012-03-20 | B28: 80.35 | C28: 80.72 | D28: 79.95 | E28: 80.39 | F28: 5137468
A29: 2012-03-19 | B29: 79.63 | C29: 81.79 | D29: 79.38 | E29: 81.11 | F29: 11886648
A30: 2012-03-16 | B30: 78.93 | C30: 79.13 | D30: 78.4 | E30: 78.41 | F30: 4611956
A31: 2012-03-15 | B31: 78.25 | C31: 78.98 | D31: 77.9 | E31: 78.94 | F31: 3956690
A32: 2012-03-14 | B32: 78.33 | C32: 78.44 | D32: 78.01 | E32: 78.24 | F32: 3452967
A33: 2012-03-13 | B33: 77.77 | C33: 78.43 | D33: 77.56 | E33: 78.37 | F33: 4442592
A34: 2012-03-12 | B34: 77.39 | C34: 77.79 | D34: 77.12 | E34: 77.69 | F34: 3243339
A35: 2012-03-09 | B35: 76.92 | C35: 77.42 | D35: 76.44 | E35: 77.16 | F35: 2954834
A36: 2012-03-08 | B36: 76.28 | C36: 76.89 | D36: 76.04 | E36: 76.72 | F36: 3405312
A37: 2012-03-07 | B37: 75.59 | C37: 76.16 | D37: 75.57 | E37: 76 | F37: 2552469
A38: 2012-03-06 | B38: 75.69 | C38: 76.22 | D38: 75.38 | E38: 75.61 | F38: 3290523
A39: 2012-03-05 | B39: 76.54 | C39: 76.57 | D39: 75.92 | E39: 76.32 | F39: 2102488
A40: 2012-03-02 | B40: 76.09 | C40: 77 | D40: 76.09 | E40: 76.54 | F40: 1992850
A41: 2012-03-01 | B41: 77.15 | C41: 77.26 | D41: 76.59 | E41: 76.89 | F41: 3659840
A42: 2012-02-29 | B42: 76.86 | C42: 77.1 | D42: 76.33 | E42: 76.99 | F42: 4315912
A43: 2012-02-28 | B43: 76.66 | C43: 77.09 | D43: 76.45 | E43: 76.86 | F43: 3208923
A44: 2012-02-27 | B44: 76.34 | C44: 77.14 | D44: 75.84 | E44: 76.77 | F44: 3439263
CV100: 0

Sheet Stocks
A2: Companies listed on the NYSE | D2: Do not edit this sheet
A3: Company Name | B3: Symbol | C3: Chart | D3: Price | E3: Change | F3: % Change | G3: Volume
A4: Bank of America | B4: BAC | D4: BAC -0.308.93 | E4: -0.3 | F4: -0.0325 | G4: 210427898
A5: Ford Motor | B5: F | D5: F -0.2512.22 | E5: -0.25 | F5: -0.02 | G5: 42393179
A6: Sprint Nextel | B6: S | D6: S -0.012.75 | E6: -0.01 | F6: -0.0036 | G6: 36412653
A7: Gen Electric | B7: GE | D7: GE -0.2919.20 | E7: -0.29 | F7: -0.0149 | G7: 36201458
A8: Citigroup | B8: C | D8: C -0.8233.97 | E8: -0.82 | F8: -0.0236 | G8: 34326013
A9: Jp Morgan Chase | B9: JPM | D9: JPM -0.4543.89 | E9: -0.45 | F9: -0.0101 | G9: 29338571
A10: Alcoa | B10: AA | D10: AA -0.039.60 | E10: -0.03 | F10: -0.0031 | G10: 23670241
A11: Nokia | B11: NOK | D11: NOK +0.035.14 | E11: 0.03 | F11: 0.0059 | G11: 23625869
A12: Northeast Util | B12: NU | D12: NU -0.1036.79 | E12: -0.1 | F12: -0.0027 | G12: 23515128
A13: Wells Fargo | B13: WFC | D13: WFC -0.3133.42 | E13: -0.31 | F13: -0.0092 | G13: 22888310
A14: Dow Chemical | B14: DOW | D14: DOW -0.9332.49 | E14: -0.93 | F14: -0.0278 | G14: 22709403
A15: Pfizer | B15: PFE | D15: PFE -0.2922.05 | E15: -0.29 | F15: -0.013 | G15: 22495161
A16: Emc | B16: EMC | D16: EMC -0.3028.64 | E16: -0.3 | F16: -0.0104 | G16: 22374563
A17: Att | B17: T | D17: T -0.3030.64 | E17: -0.3 | F17: -0.0097 | G17: 19199388
A18: Morgan Stanley | B18: MS | D18: MS -0.4117.98 | E18: -0.41 | F18: -0.0223 | G18: 18645325
A19: Regions | B19: RF | D19: RF -0.216.22 | E19: -0.21 | F19: -0.0327 | G19: 18487341
A20: Las Vegas Sands | B20: LVS | D20: LVS +1.8660.62 | E20: 1.86 | F20: 0.0317 | G20: 16906412
A21: Cinemark Holdings | B21: CNK | D21: CNK -0.5522.50 | E21: -0.55 | F21: -0.0239 | G21: 16678474
A22: Nstar | B22: NST | D22: NST -0.6547.65 | E22: -0.65 | F22: -0.0135 | G22: 16321105
A23: Duke | B23: DUK | D23: DUK -0.1520.61 | E23: -0.15 | F23: -0.0072 | G23: 15294254
A24: Hewlett Packard | B24: HPQ | D24: HPQ +0.0323.14 | E24: 0.03 | F24: 0.0013 | G24: 15262141
A25: Alcatel-lucent | B25: ALU | D25: ALU -0.032.12 | E25: -0.03 | F25: -0.014 | G25: 15067144
A26: Annaly Mortgage | B26: NLY | D26: NLY +0.1715.75 | E26: 0.17 | F26: 0.0109 | G26: 12957755
A27: Alpha Natural | B27: ANR | D27: ANR -0.1414.06 | E27: -0.14 | F27: -0.0099 | G27: 12847207
A28: Dr Horton | B28: DHI | D28: DHI +0.6514.70 | E28: 0.65 | F28: 0.0463 | G28: 12793307
A29: American International | B29: AIG | D29: AIG -0.9031.99 | E29: -0.9 | F29: -0.0274 | G29: 12631148
A30: Companhia Vale Do Rio Doce | B30: VALE | D30: VALE -0.1722.74 | E30: -0.17 | F30: -0.0074 | G30: 12568634
A31: Freeport Mcmoran | B31: FCX | D31: FCX -0.2937.51 | E31: -0.29 | F31: -0.0077 | G31: 12468080
A32: Lowes Companies | B32: LOW | D32: LOW -0.2631.09 | E32: -0.26 | F32: -0.0083 | G32: 12396427
A33: Chesapeake | B33: CHK | D33: CHK -0.6821.47 | E33: -0.68 | F33: -0.0307 | G33: 12176965
A34: Corning | B34: GLW | D34: GLW -0.0613.48 | E34: -0.06 | F34: -0.0044 | G34: 12144560
A35: Halliburton | B35: HAL | D35: HAL -0.3932.38 | E35: -0.39 | F35: -0.0119 | G35: 11796485
A36: Merck | B36: MRK | D36: MRK -0.1538.73 | E36: -0.15 | F36: -0.0039 | G36: 11708145
A37: Boston Scientific | B37: BSX | D37: BSX -0.065.84 | E37: -0.06 | F37: -0.0102 | G37: 11511440
A38: Weatherford | B38: WFT | D38: WFT -0.1614.04 | E38: -0.16 | F38: -0.0113 | G38: 11299693
A39: Mgic Investments | B39: MTG | D39: MTG -0.344.49 | E39: -0.34 | F39: -0.0704 | G39: 11139402
A40: Exxon Mobil | B40: XOM | D40: XOM -0.9483.88 | E40: -0.94 | F40: -0.0111 | G40: 11026539
A41: Pulte Homes | B41: PHM | D41: PHM -0.038.23 | E41: -0.03 | F41: -0.0036 | G41: 10659435
A42: Verizon | B42: VZ | D42: VZ -0.2037.46 | E42: -0.2 | F42: -0.0053 | G42: 10496448
A43: Sandridge Energy | B43: SD | D43: SD -0.307.42 | E43: -0.3 | F43: -0.0389 | G43: 10457813
A44: Arch Coal | B44: ACI | D44: ACI 0.0010.15 | E44: 0 | F44: 0 | G44: 10187347
A45: Advanced Micro | B45: AMD | D45: AMD -0.127.75 | E45: -0.12 | F45: -0.0152 | G45: 10066567
A46: Supervalu | B46: SVU | D46: SVU +0.195.32 | E46: 0.19 | F46: 0.037 | G46: 9999399
A47: Lsi | B47: LSI | D47: LSI -0.178.10 | E47: -0.17 | F47: -0.0206 | G47: 9770645
A48: Csx | B48: CSX | D48: CSX -0.6421.68 | E48: -0.64 | F48: -0.0287 | G48: 9659335
A49: Avon Products | B49: AVP | D49: AVP -0.7322.69 | E49: -0.73 | F49: -0.0312 | G49: 9443660
A50: Keycorp | B50: KEY | D50: KEY -0.128.15 | E50: -0.12 | F50: -0.0145 | G50: 9433985
A51: Kb Home | B51: KBH | D51: KBH +0.078.35 | E51: 0.07 | F51: 0.0085 | G51: 9324042
A52: Chimera Investment | B52: CIM | D52: CIM -0.052.74 | E52: -0.05 | F52: -0.0179 | G52: 9272755
A53: Masco | B53: MAS | D53: MAS -0.5012.27 | E53: -0.5 | F53: -0.0392 | G53: 9040439
A54: United States Steel | B54: X | D54: X -0.6027.43 | E54: -0.6 | F54: -0.0214 | G54: 8959967
A55: Petroleo Brasileiro | B55: PBR | D55: PBR -0.3924.91 | E55: -0.39 | F55: -0.0154 | G55: 8833581
A56: Cbs | B56: CBS | D56: CBS -0.7932.54 | E56: -0.79 | F56: -0.0237 | G56: 8819950
A57: Sjm | B57: STJ | D57: STJ -2.0638.91 | E57: -2.06 | F57: -0.0503 | G57: 8574327
A58: Us Bancorp | B58: USB | D58: USB -0.3431.01 | E58: -0.34 | F58: -0.0108 | G58: 8429664
A59: M G M Mirage | B59: MGM | D59: MGM -0.0913.51 | E59: -0.09 | F59: -0.0066 | G59: 8345762
A60: Hd | B60: HD | D60: HD -0.0450.58 | E60: -0.04 | F60: -0.0008 | G60: 8284463
A61: Rite Aid | B61: RAD | D61: RAD -0.041.69 | E61: -0.04 | F61: -0.0231 | G61: 8243133
A62: Altria | B62: MO | D62: MO -0.2031.16 | E62: -0.2 | F62: -0.0064 | G62: 8176577
A63: Barrick Gold | B63: ABX | D63: ABX +0.2040.93 | E63: 0.2 | F63: 0.0049 | G63: 8061033
A64: Taiwan Semicond | B64: TSM | D64: TSM -0.3814.86 | E64: -0.38 | F64: -0.0249 | G64: 7953595
A65: Banco Santander | B65: STD | D65: STD -0.047.00 | E65: -0.04 | F65: -0.0057 | G65: 7944578
A66: Genworth | B66: GNW | D66: GNW -0.367.69 | E66: -0.36 | F66: -0.0447 | G66: 7765976
A67: Cemex | B67: CX | D67: CX -0.167.25 | E67: -0.16 | F67: -0.0216 | G67: 7660575
A68: Lilly Eli | B68: LLY | D68: LLY -0.7639.72 | E68: -0.76 | F68: -0.0188 | G68: 7533175
A69: Hovnanian Ent | B69: HOV | D69: HOV -0.041.98 | E69: -0.04 | F69: -0.0198 | G69: 7406076
A70: Ml Sp 500 Mitts | B70: MCP | D70: MCP +1.5234.71 | E70: 1.52 | F70: 0.0458 | G70: 7259288
A71: Xerox | B71: XRX | D71: XRX -0.077.80 | E71: -0.07 | F71: -0.0089 | G71: 7253009
A72: Gm | B72: GM | D72: GM -0.6124.20 | E72: -0.61 | F72: -0.0246 | G72: 7241105
A73: Bank of N Y | B73: BK | D73: BK -0.4823.34 | E73: -0.48 | F73: -0.0202 | G73: 7029485
A74: Best Buy | B74: BBY | D74: BBY 0.0022.65 | E74: 0 | F74: 0 | G74: 6960918
A75: Mcmoran | B75: MMR | D75: MMR -0.319.41 | E75: -0.31 | F75: -0.0319 | G75: 6887225
A76: Procter Gamble | B76: PG | D76: PG -0.5066.81 | E76: -0.5 | F76: -0.0074 | G76: 6874762
A77: Newmont | B77: NEM | D77: NEM +0.2748.00 | E77: 0.27 | F77: 0.0057 | G77: 6859069
A78: Wal Mart Stores | B78: WMT | D78: WMT -0.5460.13 | E78: -0.54 | F78: -0.0089 | G78: 6821261
A79: Walt Disney | B79: DIS | D79: DIS -0.9742.11 | E79: -0.97 | F79: -0.0225 | G79: 6812679
A80: Conocophillips | B80: COP | D80: COP -0.3175.05 | E80: -0.31 | F80: -0.0041 | G80: 6744591
A81: Mcdonalds | B81: MCD | D81: MCD +0.2698.88 | E81: 0.26 | F81: 0.0026 | G81: 6686295
A82: Sara Lee | B82: SLE | D82: SLE -0.3421.17 | E82: -0.34 | F82: -0.0158 | G82: 6590238
A83: Gap | B83: GPS | D83: GPS -0.3326.12 | E83: -0.33 | F83: -0.0125 | G83: 6578915
A84: Walgreen | B84: WAG | D84: WAG -0.2832.56 | E84: -0.28 | F84: -0.0085 | G84: 6554979
A85: Banco Bradesco | B85: BBD | D85: BBD -0.0916.78 | E85: -0.09 | F85: -0.0053 | G85: 6536444
A86: Metlife | B86: MET | D86: MET -0.7235.74 | E86: -0.72 | F86: -0.0197 | G86: 6502551
A87: Schlumberger | B87: SLB | D87: SLB -0.8367.59 | E87: -0.83 | F87: -0.0121 | G87: 6450860
A88: Caterpillar | B88: CAT | D88: CAT -2.30103.57 | E88: -2.3 | F88: -0.0217 | G88: 6334776
A89: Lennar | B89: LEN | D89: LEN +0.1726.42 | E89: 0.17 | F89: 0.0065 | G89: 6291218
A90: Johnson & Johnson | B90: JNJ | D90: JNJ -0.4264.92 | E90: -0.42 | F90: -0.0064 | G90: 6269253
A91: Abbott Labs | B91: ABT | D91: ABT -0.3360.97 | E91: -0.33 | F91: -0.0054 | G91: 6206141
A92: Yamana Gold Inc. | B92: AUY | D92: AUY +0.0714.89 | E92: 0.07 | F92: 0.0047 | G92: 6086868
A93: Ex Resources | B93: XCO | D93: XCO -0.096.23 | E93: -0.09 | F93: -0.0142 | G93: 6078400
A94: Kinross Gold | B94: KGC | D94: KGC +0.079.26 | E94: 0.07 | F94: 0.0076 | G94: 6070298
A95: Peabody | B95: BTU | D95: BTU -0.5627.71 | E95: -0.56 | F95: -0.0198 | G95: 6069265
A96: Exelon | B96: EXC | D96: EXC -0.1438.23 | E96: -0.14 | F96: -0.0036 | G96: 6030356
A97: Host Marriott Financial Trust | B97: HST | D97: HST -0.3015.90 | E97: -0.3 | F97: -0.0185 | G97: 5966187
